[Event "*** Titled Tuesday Blitz"]
[Site "Chess.com"]
[Date "2018.11.06"]
[Round "4"]
[White "Bauxi435"]
[Black "nOcHeaTiNgKiD"]
[Result "1-0"]
[WhiteElo "2437"]
[BlackElo "2449"]
[TimeControl "180+2"]
[EndTime "13:51:08 PST"]
[Termination "Bauxi435 won by resignation"]

1. d4 {[%clk 0:03:01.9]} 1... d5 {[%clk 0:03:00.6]} 2. c4 {[%clk 0:03:01.2]}
2... e6 {[%clk 0:03:01.7]} 3. Nc3 {[%clk 0:03:00.8]} 3... Nf6 {[%clk 0:03:02.9]}
4. cxd5 {[%clk 0:02:58]} 4... exd5 {[%clk 0:03:03.5]} 5. Bg5 {[%clk 0:02:57.4]}
5... c6 {[%clk 0:03:04.7]} 6. e3 {[%clk 0:02:57.2]} 6... Be7 {[%clk 0:03:05.8]}
7. Bd3 {[%clk 0:02:56.9]} 7... Nbd7 {[%clk 0:03:07]} 8. Nge2 {[%clk 0:02:49.6]}
8... Nh5 {[%clk 0:03:07.6]} 9. Bxe7 {[%clk 0:02:45.8]} 9... Qxe7 {[%clk
0:03:08.5]} 10. g4 {[%clk 0:02:44.4]} 10... Nhf6 {[%clk 0:03:09.2]} 11. Ng3
{[%clk 0:02:40.6]} 11... Nb6 {[%clk 0:02:59.3]} 12. h3 {[%clk 0:02:37.8]} 12...
g6 {[%clk 0:02:58.3]} 13. Qc2 {[%clk 0:02:32.3]} 13... Bd7 {[%clk 0:02:52.1]}
14. g5 {[%clk 0:02:15]} 14... Ng8 {[%clk 0:02:49.4]} 15. h4 {[%clk 0:02:14.8]}
15... O-O-O {[%clk 0:02:35.1]} 16. O-O-O {[%clk 0:02:11.5]} 16... h6 {[%clk
0:02:21.1]} 17. h5 {[%clk 0:01:54.1]} 17... Qxg5 {[%clk 0:01:54.6]} 18. hxg6
{[%clk 0:01:41.8]} 18... fxg6 {[%clk 0:01:55.1]} 19. Bxg6 {[%clk 0:01:42.3]}
19... Ne7 {[%clk 0:01:54.8]} 20. Bd3 {[%clk 0:01:40.2]} 20... Rhf8 {[%clk
0:01:54.3]} 21. Nh5 {[%clk 0:01:33.7]} 21... Qg2 {[%clk 0:01:39.2]} 22. Nf4
{[%clk 0:01:32.4]} 22... Qg5 {[%clk 0:00:54]} 23. Rdg1 {[%clk 0:01:32.2]} 23...
Qf6 {[%clk 0:00:55]} 24. a4 {[%clk 0:01:23.8]} 24... Nc4 {[%clk 0:00:40.3]} 25.
Bxc4 {[%clk 0:01:21.1]} 25... dxc4 {[%clk 0:00:41]} 26. Ne4 {[%clk 0:01:19.8]}
26... Qh8 {[%clk 0:00:32.5]} 27. Qxc4 {[%clk 0:01:16.4]} 27... Kb8 {[%clk
0:00:29.9]} 28. Qc5 {[%clk 0:01:13.7]} 28... Nd5 {[%clk 0:00:29.7]} 29. Qd6+
{[%clk 0:01:09.9]} 29... Ka8 {[%clk 0:00:30.6]} 30. Rxh6 {[%clk 0:01:09.6]}
30... Qxd4 {[%clk 0:00:31.4]} 1-0

[Event "*** Titled Tuesday Blitz"]
[Site "Chess.com"]
[Date "2018.11.06"]
[Round "4"]
[White "RaphaeI"]
[Black "Zhuu96"]
[Result "1-0"]
[WhiteElo "2568"]
[BlackElo "2849"]
[TimeControl "180+2"]
[EndTime "13:51:09 PST"]
[Termination "RaphaeI won by resignation"]

1. Nf3 {[%clk 0:03:01.9]} 1... Nf6 {[%clk 0:03:00.1]} 2. c4 {[%clk 0:03:00.9]}
2... e6 {[%clk 0:02:59.9]} 3. g3 {[%clk 0:03:01.4]} 3... d5 {[%clk 0:03:00.7]}
4. Bg2 {[%clk 0:03:02.3]} 4... Be7 {[%clk 0:03:02.3]} 5. O-O {[%clk 0:03:02.8]}
5... O-O {[%clk 0:03:03.9]} 6. d4 {[%clk 0:03:04.4]} 6... c6 {[%clk 0:03:05.2]}
7. Qc2 {[%clk 0:03:04]} 7... b6 {[%clk 0:03:06.2]} 8. Nbd2 {[%clk 0:02:56.1]}
8... Bb7 {[%clk 0:03:06.8]} 9. e4 {[%clk 0:02:56.3]} 9... Na6 {[%clk 0:03:07.5]}
10. Rd1 {[%clk 0:02:49.1]} 10... Rc8 {[%clk 0:03:03.8]} 11. b3 {[%clk
0:02:50.3]} 11... Nb4 {[%clk 0:03:01.7]} 12. Qb1 {[%clk 0:02:50.9]} 12... c5
{[%clk 0:02:43.6]} 13. exd5 {[%clk 0:02:50.5]} 13... exd5 {[%clk 0:02:40.8]} 14.
a3 {[%clk 0:02:40.8]} 14... Nc6 {[%clk 0:02:41.5]} 15. Bb2 {[%clk 0:02:42.1]}
15... cxd4 {[%clk 0:02:40.8]} 16. Nxd4 {[%clk 0:02:42]} 16... Nxd4 {[%clk
0:02:42]} 17. Bxd4 {[%clk 0:02:43.9]} 17... Bc5 {[%clk 0:02:37.1]} 18. Nf1
{[%clk 0:02:39.8]} 18... Qe7 {[%clk 0:02:32.7]} 19. Ne3 {[%clk 0:01:47.7]} 19...
Bxd4 {[%clk 0:02:27.9]} 20. Rxd4 {[%clk 0:01:48.8]} 20... dxc4 {[%clk
0:02:24.7]} 21. Nf5 {[%clk 0:01:29.7]} 21... Qc7 {[%clk 0:02:21.9]} 22. Rxc4
{[%clk 0:01:29.5]} 22... Qd7 {[%clk 0:02:22.5]} 23. Rd4 {[%clk 0:01:22.9]} 23...
Qc7 {[%clk 0:02:22.8]} 24. Bxb7 {[%clk 0:00:57.5]} 24... Qxb7 {[%clk 0:02:22.7]}
25. Nd6 {[%clk 0:00:59.1]} 25... Qd7 {[%clk 0:02:23.6]} 26. Qd3 {[%clk
0:00:58.7]} 26... Rcd8 {[%clk 0:02:16.1]} 27. Rd1 {[%clk 0:00:59.2]} 27... Qh3
{[%clk 0:02:12.3]} 28. Qc4 {[%clk 0:00:51.6]} 28... h6 {[%clk 0:02:03.9]} 29.
Nxf7 {[%clk 0:00:38]} 29... Rxd4 {[%clk 0:02:02.1]} 30. Rxd4 {[%clk 0:00:30.9]}
30... Qh5 {[%clk 0:01:57.6]} 31. Ne5+ {[%clk 0:00:22.3]} 31... Kh8 {[%clk
0:01:56.2]} 32. f4 {[%clk 0:00:22.3]} 32... Ng4 {[%clk 0:01:52.5]} 33. Qe2
{[%clk 0:00:21.6]} 33... Qf5 {[%clk 0:01:47.4]} 34. Qxg4 {[%clk 0:00:21.6]}
34... Qb1+ {[%clk 0:01:48]} 35. Qd1 {[%clk 0:00:22.8]} 1-0

[Event "*** Titled Tuesday Blitz"]
[Site "Chess.com"]
[Date "2018.11.06"]
[Round "4"]
[White "Karina_Oparina"]
[Black "armago"]
[Result "1-0"]
[WhiteElo "2184"]
[BlackElo "2027"]
[TimeControl "180+2"]
[EndTime "13:51:16 PST"]
[Termination "Karina_Oparina won by resignation"]

1. Nf3 {[%clk 0:03:00.7]} 1... Nf6 {[%clk 0:02:44.1]} 2. g3 {[%clk 0:03:00.8]}
2... g6 {[%clk 0:02:44.8]} 3. Bg2 {[%clk 0:03:01.7]} 3... Bg7 {[%clk 0:02:46.1]}
4. O-O {[%clk 0:03:01.4]} 4... O-O {[%clk 0:02:47]} 5. c4 {[%clk 0:03:02.4]}
5... c5 {[%clk 0:02:45.5]} 6. d4 {[%clk 0:03:02.9]} 6... cxd4 {[%clk 0:02:45.7]}
7. Nxd4 {[%clk 0:03:03.8]} 7... Nc6 {[%clk 0:02:46.4]} 8. Nc3 {[%clk 0:03:04]}
8... d6 {[%clk 0:02:45.8]} 9. Nxc6 {[%clk 0:03:04.1]} 9... bxc6 {[%clk
0:02:47.7]} 10. Bxc6 {[%clk 0:03:03.4]} 10... Bh3 {[%clk 0:02:48.9]} 11. Bg2
{[%clk 0:03:00.6]} 11... Bxg2 {[%clk 0:02:49.4]} 12. Kxg2 {[%clk 0:03:01.5]}
12... Qc8 {[%clk 0:02:50.3]} 13. Qd3 {[%clk 0:03:00.7]} 13... Nd7 {[%clk
0:02:49.5]} 14. b3 {[%clk 0:02:50.1]} 14... Qc6+ {[%clk 0:02:40.5]} 15. f3
{[%clk 0:02:45.5]} 15... Rfc8 {[%clk 0:02:06.7]} 16. Bb2 {[%clk 0:02:45.6]}
16... e6 {[%clk 0:02:02.9]} 17. Rad1 {[%clk 0:02:38.9]} 17... Ne5 {[%clk
0:01:50.6]} 18. Qxd6 {[%clk 0:02:31.1]} 18... Ng4 {[%clk 0:01:51.5]} 19. Qf4
{[%clk 0:01:45.6]} 19... h5 {[%clk 0:01:29.1]} 20. Rd3 {[%clk 0:01:05.4]} 20...
Bh6 {[%clk 0:01:16.9]} 21. Qd4 {[%clk 0:01:04]} 21... e5 {[%clk 0:01:15.7]} 22.
Qg1 {[%clk 0:00:58.3]} 22... Rd8 {[%clk 0:01:05.3]} 23. Nd5 {[%clk 0:00:56.2]}
23... Rxd5 {[%clk 0:01:02]} 24. cxd5 {[%clk 0:00:51.8]} 24... Qc2 {[%clk
0:01:02.5]} 25. fxg4 {[%clk 0:00:39]} 25... Qxe2+ {[%clk 0:01:00]} 26. Qf2
{[%clk 0:00:39.7]} 26... Qxd3 {[%clk 0:00:55.1]} 27. Qxf7+ {[%clk 0:00:39.8]}
1-0

[Event "*** Titled Tuesday Blitz"]
[Site "Chess.com"]
[Date "2018.11.06"]
[Round "4"]
[White "KenanGarayev"]
[Black "Firouzja2003"]
[Result "1/2-1/2"]
[WhiteElo "2756"]
[BlackElo "2951"]
[TimeControl "180+2"]
[EndTime "13:51:26 PST"]
[Termination "Game drawn by agreement"]

1. d4 {[%clk 0:03:01.9]} 1... Nf6 {[%clk 0:02:56.5]} 2. Bg5 {[%clk 0:03:02.2]}
2... e6 {[%clk 0:02:55.6]} 3. e4 {[%clk 0:03:02.8]} 3... h6 {[%clk 0:02:56.6]}
4. Bxf6 {[%clk 0:03:03.4]} 4... Qxf6 {[%clk 0:02:58.5]} 5. Nc3 {[%clk
0:03:01.7]} 5... d6 {[%clk 0:02:52.3]} 6. Qd2 {[%clk 0:03:00.4]} 6... a6 {[%clk
0:02:53.2]} 7. f4 {[%clk 0:02:58.7]} 7... g5 {[%clk 0:02:50.1]} 8. Nge2 {[%clk
0:02:48.5]} 8... gxf4 {[%clk 0:02:48.9]} 9. Qxf4 {[%clk 0:02:46.7]} 9... Qxf4
{[%clk 0:02:48]} 10. Nxf4 {[%clk 0:02:48.6]} 10... Nc6 {[%clk 0:02:48.7]} 11. d5
{[%clk 0:02:41.5]} 11... Nd4 {[%clk 0:02:46.7]} 12. O-O-O {[%clk 0:02:42.2]}
12... e5 {[%clk 0:02:47.7]} 13. Nfe2 {[%clk 0:02:40.3]} 13... Nxe2+ {[%clk
0:02:31.1]} 14. Bxe2 {[%clk 0:02:42.2]} 14... h5 {[%clk 0:02:32.6]} 15. Rhf1
{[%clk 0:02:38.6]} 15... Ke7 {[%clk 0:02:29.6]} 16. h4 {[%clk 0:02:33.1]} 16...
Bh6+ {[%clk 0:02:25.3]} 17. Kb1 {[%clk 0:02:34.3]} 17... Bf4 {[%clk 0:02:25.1]}
18. Rd3 {[%clk 0:02:28.2]} 18... Rg8 {[%clk 0:02:12.5]} 19. Bf3 {[%clk
0:02:26.4]} 19... Bg4 {[%clk 0:02:02.8]} 20. Ne2 {[%clk 0:02:27]} 20... Bxf3
{[%clk 0:02:03.2]} 21. Rdxf3 {[%clk 0:02:25.9]} 21... Rxg2 {[%clk 0:02:04.2]}
22. Nxf4 {[%clk 0:02:26.1]} 22... exf4 {[%clk 0:02:06.1]} 23. Rxf4 {[%clk
0:02:28]} 23... Rf8 {[%clk 0:02:07.9]} 24. Rf5 {[%clk 0:02:23.4]} 24... Rg4
{[%clk 0:02:09]} 25. Rxh5 {[%clk 0:02:21.2]} 25... Rxe4 {[%clk 0:02:10.1]} 26.
Rh7 {[%clk 0:02:18.2]} 26... Re5 {[%clk 0:02:11]} 27. c4 {[%clk 0:02:14.8]}
27... b5 {[%clk 0:02:11.6]} 28. Rf4 {[%clk 0:02:11.7]} 28... Re2 {[%clk
0:01:56.8]} 29. h5 {[%clk 0:02:08.9]} 29... bxc4 {[%clk 0:01:56.3]} 30. h6
{[%clk 0:02:04]} 30... c3 {[%clk 0:01:49.5]} 31. bxc3 {[%clk 0:02:05.9]} 31...
Rh2 {[%clk 0:01:48.3]} 32. Re4+ {[%clk 0:02:01.8]} 32... Kd7 {[%clk 0:01:47.5]}
33. Rf4 {[%clk 0:02:02.3]} 33... Ke7 {[%clk 0:01:48]} 34. Re4+ {[%clk
0:02:01.4]} 34... Kd8 {[%clk 0:01:49.3]} 35. Rf4 {[%clk 0:02:02.6]} 35... Re8
{[%clk 0:01:50.2]} 36. Rf1 {[%clk 0:01:55.5]} 36... Ree2 {[%clk 0:01:50]} 37.
Rhxf7 {[%clk 0:01:51.1]} 37... Kc8 {[%clk 0:01:40.9]} 38. h7 {[%clk 0:01:47.6]}
38... Kb7 {[%clk 0:01:31.5]} 39. R7f2 {[%clk 0:01:48.4]} 39... Rexf2 {[%clk
0:01:31.4]} 40. Rxf2 {[%clk 0:01:50.3]} 40... Rxh7 {[%clk 0:01:32.9]} 41. Rb2+
{[%clk 0:01:43.3]} 41... Ka7 {[%clk 0:01:30.4]} 42. Kc2 {[%clk 0:01:45.2]} 42...
Rh2+ {[%clk 0:01:25.4]} 43. Kb3 {[%clk 0:01:46.2]} 43... Rxb2+ {[%clk
0:01:27.3]} 44. Kxb2 {[%clk 0:01:48.1]} 44... Kb6 {[%clk 0:01:29.2]} 45. c4
{[%clk 0:01:47.2]} 45... c6 {[%clk 0:01:22]} 46. dxc6 {[%clk 0:01:48.2]} 46...
Kxc6 {[%clk 0:01:23.9]} 47. Kc3 {[%clk 0:01:50.1]} 47... Kc5 {[%clk 0:01:25]}
48. a3 {[%clk 0:01:48.4]} 48... a5 {[%clk 0:01:19.8]} 49. a4 {[%clk 0:01:49.4]}
49... Kb6 {[%clk 0:01:21]} 50. Kd4 {[%clk 0:01:48.9]} 50... Kc6 {[%clk
0:01:22.4]} 51. Kd3 {[%clk 0:01:49.9]} 51... Kc7 {[%clk 0:01:22.5]} 52. Kd4
{[%clk 0:01:49.5]} 52... Kc6 {[%clk 0:01:23.8]} 53. Kd3 {[%clk 0:01:50.7]}
1/2-1/2

[Event "*** Titled Tuesday Blitz"]
[Site "Chess.com"]
[Date "2018.11.06"]
[Round "4"]
[White "Alohamora11"]
[Black "Maikrosoft63"]
[Result "0-1"]
[WhiteElo "2314"]
[BlackElo "2535"]
[TimeControl "180+2"]
[EndTime "13:51:28 PST"]
[Termination "Maikrosoft63 won on time"]

1. e4 {[%clk 0:03:01.9]} 1... c5 {[%clk 0:03:00.7]} 2. Nf3 {[%clk 0:02:58.8]}
2... Nc6 {[%clk 0:02:58.7]} 3. d4 {[%clk 0:02:58.7]} 3... cxd4 {[%clk
0:03:00.6]} 4. Nxd4 {[%clk 0:03:00.6]} 4... Nf6 {[%clk 0:03:01.7]} 5. Nc3 {[%clk
0:03:01.8]} 5... d6 {[%clk 0:03:02.5]} 6. h3 {[%clk 0:02:28.5]} 6... e5 {[%clk
0:02:56.2]} 7. Nde2 {[%clk 0:02:27.6]} 7... h6 {[%clk 0:02:55.4]} 8. g4 {[%clk
0:02:27.3]} 8... Be7 {[%clk 0:02:55.9]} 9. Be3 {[%clk 0:02:27.6]} 9... Be6
{[%clk 0:02:55.6]} 10. f4 {[%clk 0:02:19.6]} 10... exf4 {[%clk 0:02:56.6]} 11.
Nxf4 {[%clk 0:02:21.2]} 11... Ne5 {[%clk 0:02:51.9]} 12. Nxe6 {[%clk 0:01:50]}
12... fxe6 {[%clk 0:02:53.8]} 13. Bg2 {[%clk 0:01:51.2]} 13... O-O {[%clk
0:02:50.1]} 14. O-O {[%clk 0:01:51.6]} 14... Nfd7 {[%clk 0:02:44.9]} 15. Rxf8+
{[%clk 0:01:26.1]} 15... Kxf8 {[%clk 0:02:44.4]} 16. Ne2 {[%clk 0:01:21.5]}
16... Kg8 {[%clk 0:02:43.4]} 17. Nf4 {[%clk 0:01:12.5]} 17... Nf8 {[%clk
0:02:43.7]} 18. Bd4 {[%clk 0:01:03.5]} 18... Bf6 {[%clk 0:02:41.5]} 19. Qe2
{[%clk 0:01:00]} 19... Nf3+ {[%clk 0:02:39.7]} 20. Qxf3 {[%clk 0:00:50.7]} 20...
Bxd4+ {[%clk 0:02:41]} 21. Kh1 {[%clk 0:00:52.4]} 21... Bxb2 {[%clk 0:02:30.2]}
22. Rb1 {[%clk 0:00:49.2]} 22... Bd4 {[%clk 0:02:28.9]} 23. Qb3 {[%clk
0:00:47.6]} 23... Qf6 {[%clk 0:02:22]} 24. Nh5 {[%clk 0:00:42.1]} 24... Qe5
{[%clk 0:01:59.4]} 25. Qxb7 {[%clk 0:00:39.9]} 25... Rd8 {[%clk 0:02:00.8]} 26.
Rf1 {[%clk 0:00:37.7]} 26... Rd7 {[%clk 0:02:01.9]} 27. Qc8 {[%clk 0:00:38.1]}
27... Rf7 {[%clk 0:02:01.2]} 28. Rxf7 {[%clk 0:00:27]} 28... Kxf7 {[%clk
0:02:03.1]} 29. Qc7+ {[%clk 0:00:27.4]} 29... Kg8 {[%clk 0:02:04.1]} 30. Qe7
{[%clk 0:00:26.1]} 30... g6 {[%clk 0:01:44.7]} 31. c3 {[%clk 0:00:11.1]} 31...
Bxc3 {[%clk 0:01:39.7]} 0-1

[Event "*** Titled Tuesday Blitz"]
[Site "Chess.com"]
[Date "2018.11.06"]
[Round "4"]
[White "nochewycandy"]
[Black "chesstatour"]
[Result "1-0"]
[WhiteElo "2180"]
[BlackElo "2083"]
[TimeControl "180+2"]
[EndTime "13:51:29 PST"]
[Termination "nochewycandy won on time"]

1. e4 {[%clk 0:03:01.9]} 1... c6 {[%clk 0:02:57.7]} 2. Nc3 {[%clk 0:03:02.6]}
2... d5 {[%clk 0:02:59.1]} 3. Nf3 {[%clk 0:03:04.5]} 3... dxe4 {[%clk
0:02:59.8]} 4. Nxe4 {[%clk 0:03:06.4]} 4... Nf6 {[%clk 0:03:01.1]} 5. Nxf6+
{[%clk 0:03:06.9]} 5... gxf6 {[%clk 0:03:02.3]} 6. d4 {[%clk 0:03:07.4]} 6...
Bg4 {[%clk 0:03:00.9]} 7. Be3 {[%clk 0:02:47.1]} 7... e6 {[%clk 0:02:57.9]} 8.
h3 {[%clk 0:02:45.1]} 8... Bf5 {[%clk 0:02:58]} 9. g3 {[%clk 0:02:46.1]} 9...
Nd7 {[%clk 0:01:57]} 10. Bg2 {[%clk 0:02:46.5]} 10... Nb6 {[%clk 0:01:56.5]} 11.
O-O {[%clk 0:02:44.7]} 11... h5 {[%clk 0:01:39.7]} 12. Nh4 {[%clk 0:02:44.4]}
12... Bh7 {[%clk 0:01:33.7]} 13. Qxh5 {[%clk 0:02:39.8]} 13... Bg7 {[%clk
0:01:28.2]} 14. Qg4 {[%clk 0:02:36.7]} 14... Rg8 {[%clk 0:01:23.4]} 15. Qe2
{[%clk 0:02:30.8]} 15... Nd5 {[%clk 0:01:00.9]} 16. c4 {[%clk 0:02:07.6]} 16...
Nxe3 {[%clk 0:00:43]} 17. Qxe3 {[%clk 0:02:06.1]} 17... f5 {[%clk 0:00:41.6]}
18. Nf3 {[%clk 0:02:06.9]} 18... Qf6 {[%clk 0:00:34.1]} 19. d5 {[%clk
0:01:52.1]} 19... f4 {[%clk 0:00:34.2]} 20. Qb3 {[%clk 0:01:47.5]} 20... cxd5
{[%clk 0:00:22.8]} 21. Qxb7 {[%clk 0:01:46.1]} 21... Rd8 {[%clk 0:00:22.4]} 22.
cxd5 {[%clk 0:01:42]} 22... fxg3 {[%clk 0:00:15.1]} 23. fxg3 {[%clk 0:01:37.5]}
23... Rxd5 {[%clk 0:00:14.3]} 24. Rac1 {[%clk 0:01:06.1]} 24... Rd8 {[%clk
0:00:09.1]} 25. Ne5 {[%clk 0:00:56.2]} 1-0

[Event "*** Titled Tuesday Blitz"]
[Site "Chess.com"]
[Date "2018.11.06"]
[Round "4"]
[White "NTBT_DHS"]
[Black "ohusbands"]
[Result "1-0"]
[WhiteElo "2737"]
[BlackElo "2529"]
[TimeControl "180+2"]
[EndTime "13:51:30 PST"]
[Termination "NTBT_DHS won by resignation"]

1. d4 {[%clk 0:03:01.9]} 1... Nf6 {[%clk 0:03:00.7]} 2. c4 {[%clk 0:03:02.4]}
2... e6 {[%clk 0:03:02.1]} 3. Nf3 {[%clk 0:03:03.3]} 3... d5 {[%clk 0:03:03.5]}
4. g3 {[%clk 0:03:04.1]} 4... dxc4 {[%clk 0:03:03]} 5. Bg2 {[%clk 0:03:04.6]}
5... Bb4+ {[%clk 0:03:04.5]} 6. Bd2 {[%clk 0:03:05.1]} 6... a5 {[%clk
0:03:06.1]} 7. O-O {[%clk 0:03:05.1]} 7... O-O {[%clk 0:03:05.8]} 8. Qc2 {[%clk
0:02:55.6]} 8... b5 {[%clk 0:03:05.6]} 9. a4 {[%clk 0:02:43.8]} 9... c6 {[%clk
0:03:05.6]} 10. e4 {[%clk 0:02:44.4]} 10... Bb7 {[%clk 0:03:03.5]} 11. Nc3
{[%clk 0:02:41.3]} 11... Bxc3 {[%clk 0:02:40.5]} 12. bxc3 {[%clk 0:02:43.2]}
12... Nbd7 {[%clk 0:02:38.4]} 13. e5 {[%clk 0:02:41.2]} 13... Nd5 {[%clk
0:02:39]} 14. Ng5 {[%clk 0:02:42.5]} 14... g6 {[%clk 0:02:37.1]} 15. Ne4 {[%clk
0:02:43.6]} 15... Ba6 {[%clk 0:02:06.2]} 16. axb5 {[%clk 0:02:38.7]} 16... cxb5
{[%clk 0:02:05.8]} 17. Bg5 {[%clk 0:02:27.1]} 17... Qc7 {[%clk 0:01:57.9]} 18.
Qd2 {[%clk 0:02:27.7]} 18... b4 {[%clk 0:01:50.3]} 19. Bf6 {[%clk 0:02:25.2]}
19... N5xf6 {[%clk 0:01:31.3]} 20. Nxf6+ {[%clk 0:02:25.8]} 20... Nxf6 {[%clk
0:01:32.3]} 21. exf6 {[%clk 0:02:27.7]} 21... Kh8 {[%clk 0:01:13.8]} 22. Qh6
{[%clk 0:02:25.5]} 22... Rg8 {[%clk 0:01:12.1]} 23. Bxa8 {[%clk 0:02:25.9]}
23... b3 {[%clk 0:01:05.4]} 24. Be4 {[%clk 0:02:25.2]} 24... Bb5 {[%clk
0:01:04.2]} 25. Qg5 {[%clk 0:02:14.1]} 25... Rb8 {[%clk 0:01:01.3]} 26. Qe5
{[%clk 0:02:02.5]} 26... Qxe5 {[%clk 0:00:36]} 27. dxe5 {[%clk 0:02:04.4]} 27...
a4 {[%clk 0:00:37.7]} 28. Rfd1 {[%clk 0:02:02.4]} 28... h5 {[%clk 0:00:36.1]}
29. f4 {[%clk 0:02:01]} 29... Rb6 {[%clk 0:00:24.4]} 30. Rd8+ {[%clk 0:01:54.1]}
30... Kh7 {[%clk 0:00:25.6]} 31. Rf8 {[%clk 0:01:54.8]} 31... Bc6 {[%clk
0:00:18.4]} 32. Rxf7+ {[%clk 0:01:55.2]} 32... Kh6 {[%clk 0:00:15.1]} 33. Bxc6
{[%clk 0:01:51.3]} 33... b2 {[%clk 0:00:14.7]} 34. Rb1 {[%clk 0:01:52.4]} 34...
a3 {[%clk 0:00:15.4]} 35. Ra7 {[%clk 0:01:53.5]} 35... Rb3 {[%clk 0:00:12.4]}
36. Ra8 {[%clk 0:01:51.6]} 36... Kh7 {[%clk 0:00:09.7]} 37. f7 {[%clk
0:01:52.9]} 37... Rxc3 {[%clk 0:00:07.7]} 38. f8=Q {[%clk 0:01:54]} 38... Rc1+
{[%clk 0:00:08.7]} 39. Kg2 {[%clk 0:01:55.6]} 1-0

[Event "*** Titled Tuesday Blitz"]
[Site "Chess.com"]
[Date "2018.11.06"]
[Round "4"]
[White "florianschwabeneder"]
[Black "MFBerna"]
[Result "1-0"]
[WhiteElo "2487"]
[BlackElo "2360"]
[TimeControl "180+2"]
[EndTime "13:51:30 PST"]
[Termination "florianschwabeneder won by resignation"]

1. e4 {[%clk 0:03:01.9]} 1... c6 {[%clk 0:03:01.3]} 2. d4 {[%clk 0:03:01.3]}
2... d5 {[%clk 0:03:03.2]} 3. exd5 {[%clk 0:03:02.6]} 3... cxd5 {[%clk
0:03:05.1]} 4. Nf3 {[%clk 0:03:03.4]} 4... Nf6 {[%clk 0:03:06.5]} 5. Ne5 {[%clk
0:03:01.9]} 5... Nc6 {[%clk 0:03:06.1]} 6. c3 {[%clk 0:03:02.8]} 6... g6 {[%clk
0:03:02.8]} 7. Bb5 {[%clk 0:02:58.2]} 7... Bd7 {[%clk 0:03:03.7]} 8. Nxd7 {[%clk
0:02:58.1]} 8... Qxd7 {[%clk 0:03:05.6]} 9. O-O {[%clk 0:02:58.4]} 9... Bg7
{[%clk 0:03:06.5]} 10. Re1 {[%clk 0:02:59.1]} 10... O-O {[%clk 0:03:06.8]} 11.
Nd2 {[%clk 0:02:59.7]} 11... a6 {[%clk 0:03:07.1]} 12. Bd3 {[%clk 0:03:00.3]}
12... Rfe8 {[%clk 0:03:07.5]} 13. Nf3 {[%clk 0:02:59.4]} 13... b5 {[%clk
0:03:02.3]} 14. a3 {[%clk 0:02:55.9]} 14... e6 {[%clk 0:02:53.4]} 15. Bf4 {[%clk
0:02:52.8]} 15... Qb7 {[%clk 0:02:46.4]} 16. Qe2 {[%clk 0:02:47.8]} 16... Na5
{[%clk 0:02:27.9]} 17. Ne5 {[%clk 0:02:40.2]} 17... Nc4 {[%clk 0:02:25.7]} 18.
h4 {[%clk 0:02:34.5]} 18... a5 {[%clk 0:02:13.1]} 19. a4 {[%clk 0:02:22.6]}
19... bxa4 {[%clk 0:02:03.9]} 20. Nxc4 {[%clk 0:02:15.8]} 20... dxc4 {[%clk
0:02:04.8]} 21. Bxc4 {[%clk 0:02:17.4]} 21... Nd5 {[%clk 0:02:03.6]} 22. Bc1
{[%clk 0:02:05.4]} 22... Bf6 {[%clk 0:01:58.2]} 23. h5 {[%clk 0:02:03.2]} 23...
e5 {[%clk 0:01:46.6]} 24. Qf3 {[%clk 0:01:51.3]} 24... exd4 {[%clk 0:01:31.4]}
25. Bh6 {[%clk 0:01:17.4]} 25... dxc3 {[%clk 0:00:16.7]} 26. Bxd5 {[%clk
0:01:16.5]} 26... cxb2 {[%clk 0:00:12.6]} 27. Qxf6 {[%clk 0:01:15.3]} 27...
bxa1=Q {[%clk 0:00:08.1]} 28. Rxa1 {[%clk 0:01:12.6]} 28... Qb2 {[%clk
0:00:06.8]} 1-0

[Event "*** Titled Tuesday Blitz"]
[Site "Chess.com"]
[Date "2018.11.06"]
[Round "4"]
[White "AttackSparrow"]
[Black "aRk_iN"]
[Result "0-1"]
[WhiteElo "2202"]
[BlackElo "2196"]
[TimeControl "180+2"]
[EndTime "13:51:31 PST"]
[Termination "aRk_iN won by checkmate"]

1. d4 {[%clk 0:03:01.9]} 1... d5 {[%clk 0:03:00.4]} 2. c4 {[%clk 0:03:02.9]}
2... c6 {[%clk 0:03:01.2]} 3. Nf3 {[%clk 0:03:03.6]} 3... Nf6 {[%clk 0:03:01.3]}
4. e3 {[%clk 0:03:03.4]} 4... Bf5 {[%clk 0:03:00.6]} 5. Nc3 {[%clk 0:02:59.1]}
5... a6 {[%clk 0:03:01.4]} 6. h3 {[%clk 0:02:53.9]} 6... h6 {[%clk 0:03:01.4]}
7. b3 {[%clk 0:02:52.5]} 7... Nbd7 {[%clk 0:03:01]} 8. Bb2 {[%clk 0:02:53.3]}
8... e6 {[%clk 0:03:00.9]} 9. Bd3 {[%clk 0:02:51.8]} 9... Bxd3 {[%clk
0:02:59.5]} 10. Qxd3 {[%clk 0:02:53.3]} 10... Be7 {[%clk 0:02:59.8]} 11. O-O
{[%clk 0:02:52.4]} 11... O-O {[%clk 0:03:00.5]} 12. Rfe1 {[%clk 0:02:48.9]}
12... b5 {[%clk 0:02:55.6]} 13. Rac1 {[%clk 0:02:44.4]} 13... Qb6 {[%clk
0:02:46.7]} 14. Ba1 {[%clk 0:02:41.9]} 14... Rfc8 {[%clk 0:02:43.5]} 15. e4
{[%clk 0:02:42.4]} 15... b4 {[%clk 0:02:28.5]} 16. e5 {[%clk 0:02:33.3]} 16...
bxc3 {[%clk 0:02:28.3]} 17. exf6 {[%clk 0:02:34]} 17... Bxf6 {[%clk 0:02:27.6]}
18. Bxc3 {[%clk 0:02:32.6]} 18... a5 {[%clk 0:02:26.5]} 19. Nh2 {[%clk
0:02:24.8]} 19... Be7 {[%clk 0:02:03.5]} 20. Ng4 {[%clk 0:02:21.2]} 20... Nf6
{[%clk 0:02:00.1]} 21. Ne5 {[%clk 0:02:16.4]} 21... Ne4 {[%clk 0:01:57.4]} 22.
Qf3 {[%clk 0:02:02.4]} 22... Bf6 {[%clk 0:01:53.1]} 23. Ba1 {[%clk 0:01:47.8]}
23... Rc7 {[%clk 0:01:43.7]} 24. Red1 {[%clk 0:01:38.8]} 24... Rac8 {[%clk
0:01:41.4]} 25. Ng4 {[%clk 0:01:38.5]} 25... Qb4 {[%clk 0:01:29.8]} 26. Qe3
{[%clk 0:01:35]} 26... Bg5 {[%clk 0:01:26.4]} 27. f4 {[%clk 0:01:35.8]} 27...
Bh4 {[%clk 0:01:20.7]} 28. Kh2 {[%clk 0:01:16.6]} 28... f5 {[%clk 0:01:20]} 29.
Ne5 {[%clk 0:01:15.9]} 29... Bg3+ {[%clk 0:01:16.9]} 30. Kh1 {[%clk 0:01:16]}
30... Nf2+ {[%clk 0:01:06.9]} 31. Kg1 {[%clk 0:01:13.1]} 31... Ne4 {[%clk
0:01:03]} 32. Nd3 {[%clk 0:01:08.8]} 32... Qe7 {[%clk 0:00:57.1]} 33. Rf1 {[%clk
0:01:05]} 33... Qh4 {[%clk 0:00:54.8]} 34. Rf3 {[%clk 0:01:03.4]} 34... g5
{[%clk 0:00:51.6]} 35. Rcf1 {[%clk 0:00:57.6]} 35... g4 {[%clk 0:00:48.5]} 36.
hxg4 {[%clk 0:00:55.2]} 36... Qh2# {[%clk 0:00:48.6]} 0-1